[Event "Live Chess"]
[Site "Chess.com"]
[Date "2023.05.20"]
[Round "-"]
[White "omisoc"]
[Black "TheSmoulderingMaster"]
[Result "1-0"]
[WhiteElo "2146"]
[BlackElo "1731"]
[TimeControl "300"]
[EndTime "13:51:11 PDT"]
[Termination "omisoc won by resignation"]

1. e4 {[%clk 0:04:57.3]} 1... c5 {[%clk 0:04:52.4]} 2. Nf3 {[%clk 0:04:55.1]}
2... d6 {[%clk 0:04:51.7]} 3. Bb5+ {[%clk 0:04:51.6]} 3... Nd7 {[%clk
0:04:50.5]} 4. O-O {[%clk 0:04:47.7]} 4... a6 {[%clk 0:04:48]} 5. Bxd7+ {[%clk
0:04:45.6]} 5... Bxd7 {[%clk 0:04:47.4]} 6. d4 {[%clk 0:04:44.8]} 6... cxd4
{[%clk 0:04:46.1]} 7. Qxd4 {[%clk 0:04:43.2]} 7... Nf6 {[%clk 0:04:43.7]} 8. Bg5
{[%clk 0:04:41.5]} 8... e5 {[%clk 0:04:39.9]} 9. Qd3 {[%clk 0:04:33.6]} 9... Bc6
{[%clk 0:04:38.8]} 10. Nc3 {[%clk 0:04:27.9]} 10... Be7 {[%clk 0:04:36.1]} 11.
Bxf6 {[%clk 0:04:26.3]} 11... Bxf6 {[%clk 0:04:34.8]} 12. Nd5 {[%clk 0:04:25.9]}
12... Bxd5 {[%clk 0:04:33.6]} 13. Qxd5 {[%clk 0:04:24.3]} 13... Qe7 {[%clk
0:04:29.1]} 14. Rfd1 {[%clk 0:04:18.6]} 14... Rd8 {[%clk 0:04:26.1]} 15. a4
{[%clk 0:04:12.6]} 15... O-O {[%clk 0:04:24.9]} 16. Ra3 {[%clk 0:04:08.7]} 16...
Rc8 {[%clk 0:04:19]} 17. Ne1 {[%clk 0:03:50.8]} 17... Rfd8 {[%clk 0:04:14.2]}
18. Rad3 {[%clk 0:03:41.4]} 18... g6 {[%clk 0:04:11.8]} 19. c3 {[%clk
0:03:38.8]} 19... Rc5 {[%clk 0:04:09.2]} 20. Qb3 {[%clk 0:03:35.5]} 20... b5
{[%clk 0:04:02.5]} 21. Nc2 {[%clk 0:03:33.4]} 21... bxa4 {[%clk 0:03:57.7]} 22.
Qa2 {[%clk 0:03:16.6]} 22... Rb5 {[%clk 0:03:53.7]} 23. Nb4 {[%clk 0:03:13.3]}
23... Rdb8 {[%clk 0:03:45.1]} 24. Nc6 {[%clk 0:03:08.4]} 1-0

[Event "Live Chess"]
[Site "Chess.com"]
[Date "2023.05.20"]
[Round "-"]
[White "whitedjohn"]
[Black "SirEntrails"]
[Result "1-0"]
[WhiteElo "1652"]
[BlackElo "535"]
[TimeControl "300"]
[EndTime "13:51:11 PDT"]
[Termination "whitedjohn won by checkmate"]

1. e4 {[%clk 0:04:55.6]} 1... d5 {[%clk 0:04:59]} 2. exd5 {[%clk 0:04:50.1]}
2... Nf6 {[%clk 0:04:58.1]} 3. d4 {[%clk 0:04:47]} 3... Nxd5 {[%clk 0:04:56.8]}
4. c4 {[%clk 0:04:45.7]} 4... Nb6 {[%clk 0:04:54]} 5. Nf3 {[%clk 0:04:41.9]}
5... Nc6 {[%clk 0:04:52.5]} 6. d5 {[%clk 0:04:39.6]} 6... Nb4 {[%clk 0:04:45.2]}
7. a3 {[%clk 0:04:33.2]} 7... N4xd5 {[%clk 0:04:35.3]} 8. cxd5 {[%clk
0:04:30.7]} 8... Nxd5 {[%clk 0:04:34]} 9. Nc3 {[%clk 0:04:26.6]} 9... Nxc3
{[%clk 0:04:32.3]} 10. Qxd8+ {[%clk 0:04:24]} 10... Kxd8 {[%clk 0:04:26.1]} 11.
bxc3 {[%clk 0:04:23.6]} 11... e6 {[%clk 0:04:22.9]} 12. Ne5 {[%clk 0:04:20.3]}
12... Ke8 {[%clk 0:04:14.2]} 13. Bc4 {[%clk 0:04:18.2]} 13... b6 {[%clk
0:04:09.7]} 14. O-O {[%clk 0:04:16.8]} 14... Bb7 {[%clk 0:04:08.8]} 15. Bf4
{[%clk 0:04:10.8]} 15... Bd6 {[%clk 0:04:05.2]} 16. Rfe1 {[%clk 0:04:07.5]}
16... f6 {[%clk 0:04:02.2]} 17. Nd3 {[%clk 0:04:00.7]} 17... e5 {[%clk 0:04:00]}
18. Bg3 {[%clk 0:03:50.9]} 18... e4 {[%clk 0:03:44.8]} 19. Nb4 {[%clk
0:03:46.5]} 19... Bxg3 {[%clk 0:03:38]} 20. hxg3 {[%clk 0:03:43.2]} 20... e3
{[%clk 0:03:35.7]} 21. Rxe3+ {[%clk 0:03:39.8]} 21... Kd7 {[%clk 0:03:32.1]} 22.
Rd1+ {[%clk 0:03:34.5]} 22... Kc8 {[%clk 0:03:23.4]} 23. Re7 {[%clk 0:03:32]}
23... g5 {[%clk 0:03:17.6]} 24. Rdd7 {[%clk 0:03:30.3]} 24... Bc6 {[%clk
0:03:12]} 25. Rxc7+ {[%clk 0:03:28.1]} 25... Kb8 {[%clk 0:03:04.5]} 26. Nxc6#
{[%clk 0:03:27.7]} 1-0

[Event "Live Chess"]
[Site "Chess.com"]
[Date "2023.05.20"]
[Round "-"]
[White "chessfiction"]
[Black "LutherSullivan"]
[Result "0-1"]
[WhiteElo "2390"]
[BlackElo "2035"]
[TimeControl "300"]
[EndTime "13:51:25 PDT"]
[Termination "LutherSullivan won by resignation"]

1. e4 {[%clk 0:04:57.7]} 1... e5 {[%clk 0:04:56.3]} 2. f4 {[%clk 0:04:56.3]}
2... exf4 {[%clk 0:04:55.1]} 3. Nf3 {[%clk 0:04:55]} 3... d5 {[%clk 0:04:39.9]}
4. Nc3 {[%clk 0:04:53]} 4... Nf6 {[%clk 0:04:36.7]} 5. exd5 {[%clk 0:04:50.6]}
5... Nxd5 {[%clk 0:04:36.2]} 6. Bc4 {[%clk 0:04:49.6]} 6... Nxc3 {[%clk
0:04:35.3]} 7. bxc3 {[%clk 0:04:49.5]} 7... Qe7+ {[%clk 0:04:26.3]} 8. Kf2
{[%clk 0:04:48.1]} 8... Qc5+ {[%clk 0:04:23.2]} 9. d4 {[%clk 0:04:45.6]} 9...
Qxc4 {[%clk 0:04:20]} 10. Re1+ {[%clk 0:04:45.5]} 10... Be6 {[%clk 0:04:15.5]}
11. d5 {[%clk 0:04:43.6]} 11... Bc5+ {[%clk 0:03:59.7]} 12. Nd4 {[%clk
0:04:41.6]} 12... Qxc3 {[%clk 0:03:48.6]} 13. dxe6 {[%clk 0:04:32.7]} 13...
Bxd4+ {[%clk 0:03:43.9]} 14. Kf1 {[%clk 0:04:28.9]} 14... Qc4+ {[%clk
0:03:02.8]} 15. Re2 {[%clk 0:04:24.5]} 15... Bxa1 {[%clk 0:02:57.9]} 16. exf7+
{[%clk 0:04:21.9]} 16... Kxf7 {[%clk 0:02:56.6]} 17. Kg1 {[%clk 0:04:14.4]}
17... Qd4+ {[%clk 0:02:49.9]} 18. Qxd4 {[%clk 0:04:11.7]} 18... Bxd4+ {[%clk
0:02:49.4]} 19. Kh1 {[%clk 0:04:10.4]} 19... Re8 {[%clk 0:02:47.7]} 0-1

[Event "Live Chess"]
[Site "Chess.com"]
[Date "2023.05.20"]
[Round "-"]
[White "manthanit"]
[Black "Man-Del-Brot"]
[Result "1-0"]
[WhiteElo "1017"]
[BlackElo "1080"]
[TimeControl "300"]
[EndTime "13:51:26 PDT"]
[Termination "manthanit won by checkmate"]

1. e4 {[%clk 0:04:59.1]} 1... e5 {[%clk 0:04:58]} 2. Nf3 {[%clk 0:04:58.5]} 2...
Nc6 {[%clk 0:04:57]} 3. Bc4 {[%clk 0:04:57.8]} 3... f5 {[%clk 0:04:55.8]} 4.
exf5 {[%clk 0:04:53.4]} 4... e4 {[%clk 0:04:53.8]} 5. Ng1 {[%clk 0:04:44.2]}
5... Nf6 {[%clk 0:04:52]} 6. d3 {[%clk 0:04:43.3]} 6... d5 {[%clk 0:04:50.7]} 7.
Bb5 {[%clk 0:04:40.5]} 7... Bxf5 {[%clk 0:04:42.9]} 8. Qe2 {[%clk 0:04:37.6]}
8... Qe7 {[%clk 0:04:39.1]} 9. Nc3 {[%clk 0:04:34.1]} 9... O-O-O {[%clk
0:04:36.1]} 10. Be3 {[%clk 0:04:29.8]} 10... d4 {[%clk 0:04:32.1]} 11. Bxc6
{[%clk 0:04:26.3]} 11... dxc3 {[%clk 0:04:17.7]} 12. bxc3 {[%clk 0:04:23.4]}
12... exd3 {[%clk 0:04:13.7]} 13. cxd3 {[%clk 0:04:21.1]} 13... Bxd3 {[%clk
0:04:11.1]} 14. Bxb7+ {[%clk 0:04:15.6]} 14... Kxb7 {[%clk 0:04:06.7]} 15. Rb1+
{[%clk 0:04:14.5]} 15... Kc8 {[%clk 0:04:05.1]} 16. Rb8+ {[%clk 0:03:54.6]}
16... Kxb8 {[%clk 0:03:57.7]} 17. Qb2+ {[%clk 0:03:54]} 17... Ka8 {[%clk
0:03:52.9]} 18. Nf3 {[%clk 0:03:52.8]} 18... Rb8 {[%clk 0:03:50.4]} 19. Qa3
{[%clk 0:03:48.1]} 19... Rb1+ {[%clk 0:03:47.9]} 20. Kd2 {[%clk 0:03:46]} 20...
Ne4+ {[%clk 0:03:36.6]} 21. Kxd3 {[%clk 0:03:44.4]} 21... Rxh1 {[%clk
0:02:40.1]} 22. Qxa7# {[%clk 0:03:41.9]} 1-0

[Event "Live Chess"]
[Site "Chess.com"]
[Date "2023.05.20"]
[Round "-"]
[White "Larchikov"]
[Black "EdenHazard8"]
[Result "0-1"]
[WhiteElo "1973"]
[BlackElo "2075"]
[TimeControl "300"]
[EndTime "13:51:43 PDT"]
[Termination "EdenHazard8 won by resignation"]

1. d4 {[%clk 0:04:53.4]} 1... d5 {[%clk 0:04:59.1]} 2. Nf3 {[%clk 0:04:52.6]}
2... Nf6 {[%clk 0:04:58.6]} 3. c4 {[%clk 0:04:52.2]} 3... e6 {[%clk 0:04:57.6]}
4. Nc3 {[%clk 0:04:51.7]} 4... dxc4 {[%clk 0:04:54.9]} 5. e4 {[%clk 0:04:50.1]}
5... b5 {[%clk 0:04:54.5]} 6. e5 {[%clk 0:04:46.3]} 6... Nd5 {[%clk 0:04:53.9]}
7. Nxb5 {[%clk 0:04:44.7]} 7... Nb6 {[%clk 0:04:53.4]} 8. Nc3 {[%clk 0:04:39.5]}
8... Nc6 {[%clk 0:04:52.8]} 9. Be3 {[%clk 0:04:31]} 9... Be7 {[%clk 0:04:50.6]}
10. Be2 {[%clk 0:04:29.9]} 10... O-O {[%clk 0:04:49.5]} 11. O-O {[%clk
0:04:29.1]} 11... Bb7 {[%clk 0:04:49]} 12. Rc1 {[%clk 0:04:26.9]} 12... Nb4
{[%clk 0:04:48.5]} 13. a3 {[%clk 0:04:24.6]} 13... N4d5 {[%clk 0:04:46.7]} 14.
Qd2 {[%clk 0:04:17.4]} 14... Rb8 {[%clk 0:04:43.1]} 15. Ne4 {[%clk 0:04:15.5]}
15... Nxe3 {[%clk 0:04:40.3]} 16. fxe3 {[%clk 0:04:15.4]} 16... Bxe4 {[%clk
0:04:39.1]} 0-1

[Event "Live Chess"]
[Site "Chess.com"]
[Date "2023.05.20"]
[Round "-"]
[White "JanMur7"]
[Black "Nazar_777"]
[Result "1-0"]
[WhiteElo "1985"]
[BlackElo "1604"]
[TimeControl "300"]
[EndTime "13:51:47 PDT"]
[Termination "JanMur7 won by checkmate"]

1. e4 {[%clk 0:04:57.7]} 1... e6 {[%clk 0:04:52.9]} 2. d4 {[%clk 0:04:56.8]}
2... a6 {[%clk 0:04:52.3]} 3. c4 {[%clk 0:04:55.4]} 3... h5 {[%clk 0:04:51.8]}
4. Nc3 {[%clk 0:04:54.5]} 4... c5 {[%clk 0:04:50.7]} 5. d5 {[%clk 0:04:53.3]}
5... Nf6 {[%clk 0:04:49.8]} 6. e5 {[%clk 0:04:51.6]} 6... Ng8 {[%clk 0:04:48.8]}
7. d6 {[%clk 0:04:50.2]} 7... b6 {[%clk 0:04:47.9]} 8. f4 {[%clk 0:04:47.4]}
8... Bb7 {[%clk 0:04:46.4]} 9. Nf3 {[%clk 0:04:46.1]} 9... Nh6 {[%clk
0:04:45.4]} 10. Be2 {[%clk 0:04:44.3]} 10... Nc6 {[%clk 0:04:44.4]} 11. O-O
{[%clk 0:04:42.5]} 11... Nf5 {[%clk 0:04:42.7]} 12. Ng5 {[%clk 0:04:29.2]} 12...
g6 {[%clk 0:04:41]} 13. Nge4 {[%clk 0:04:25.4]} 13... Bg7 {[%clk 0:04:39.2]} 14.
Ng5 {[%clk 0:04:00.2]} 14... Qc8 {[%clk 0:04:37.4]} 15. Bf3 {[%clk 0:03:55.7]}
15... Nh4 {[%clk 0:04:31.5]} 16. Be4 {[%clk 0:03:49.2]} 16... Nf5 {[%clk
0:04:28.7]} 17. Qb3 {[%clk 0:03:44.9]} 17... Ncd4 {[%clk 0:04:25.8]} 18. Qxb6
{[%clk 0:03:34.9]} 18... Bxe4 {[%clk 0:04:16.6]} 19. Ngxe4 {[%clk 0:03:31.9]}
19... Rb8 {[%clk 0:04:13]} 20. Qxc5 {[%clk 0:03:22.6]} 20... Qxc5 {[%clk
0:04:09.5]} 21. Nxc5 {[%clk 0:03:22.5]} 21... Rc8 {[%clk 0:04:03.6]} 22. Nxa6
{[%clk 0:03:20.4]} 22... f6 {[%clk 0:03:56.3]} 23. Nc7+ {[%clk 0:03:16.4]} 23...
Kf7 {[%clk 0:03:55.2]} 24. Ne4 {[%clk 0:03:00.8]} 24... fxe5 {[%clk 0:03:52.5]}
25. Ng5+ {[%clk 0:02:56.6]} 25... Kg8 {[%clk 0:03:36.4]} 26. fxe5 {[%clk
0:02:53.1]} 26... Bxe5 {[%clk 0:03:34.2]} 27. Bd2 {[%clk 0:02:44.3]} 27... Bf6
{[%clk 0:03:28.5]} 28. Ne4 {[%clk 0:02:39.8]} 28... Be5 {[%clk 0:03:22.6]} 29.
Bc3 {[%clk 0:02:35.4]} 29... Kf7 {[%clk 0:03:19.3]} 30. Rad1 {[%clk 0:02:22.3]}
30... Ne2+ {[%clk 0:03:16.9]} 31. Kh1 {[%clk 0:02:21.3]} 31... Bxc3 {[%clk
0:02:58.4]} 32. Nxc3 {[%clk 0:02:10.2]} 32... Nxc3 {[%clk 0:02:56.2]} 33. bxc3
{[%clk 0:02:10.1]} 33... Kg7 {[%clk 0:02:53.5]} 34. c5 {[%clk 0:02:06.2]} 34...
Ne3 {[%clk 0:02:50.4]} 35. Rfe1 {[%clk 0:01:58.9]} 35... Nxd1 {[%clk 0:02:48.7]}
36. Rxd1 {[%clk 0:01:58.8]} 36... g5 {[%clk 0:02:44.7]} 37. h3 {[%clk
0:01:48.9]} 37... g4 {[%clk 0:02:43]} 38. h4 {[%clk 0:01:47.3]} 38... g3 {[%clk
0:02:41.8]} 39. Rd3 {[%clk 0:01:41.1]} 39... Kf6 {[%clk 0:02:40.6]} 40. Rxg3
{[%clk 0:01:39.1]} 40... Rhg8 {[%clk 0:02:39.4]} 41. Re3 {[%clk 0:01:24.9]}
41... Rg4 {[%clk 0:02:37.4]} 42. g3 {[%clk 0:01:12.1]} 42... Rcg8 {[%clk
0:02:33.8]} 43. c6 {[%clk 0:01:03.4]} 43... dxc6 {[%clk 0:02:27.1]} 44. Nxe6
{[%clk 0:01:02]} 44... Rxg3 {[%clk 0:02:23.4]} 45. Rxg3 {[%clk 0:00:53.7]} 45...
Rxg3 {[%clk 0:02:21.7]} 46. d7 {[%clk 0:00:53.2]} 46... Ke7 {[%clk 0:02:14.4]}
47. d8=Q+ {[%clk 0:00:50.3]} 47... Kxe6 {[%clk 0:02:08.1]} 48. Qc8+ {[%clk
0:00:48.4]} 48... Kd5 {[%clk 0:02:03.4]} 49. Qf5+ {[%clk 0:00:42.7]} 49... Kc4
{[%clk 0:01:49.1]} 50. Qf4+ {[%clk 0:00:40.6]} 50... Kb5 {[%clk 0:01:48]} 51.
Qxg3 {[%clk 0:00:40.5]} 51... c5 {[%clk 0:01:47]} 52. Qg5 {[%clk 0:00:40.4]}
52... Kc4 {[%clk 0:01:45.7]} 53. Qxh5 {[%clk 0:00:40.3]} 53... Kxc3 {[%clk
0:01:44.2]} 54. Qxc5+ {[%clk 0:00:39.4]} 54... Kb2 {[%clk 0:01:43.4]} 55. Qc4
{[%clk 0:00:38.6]} 55... Ka1 {[%clk 0:01:41.9]} 56. Qe2 {[%clk 0:00:37.4]} 56...
Kb1 {[%clk 0:01:39.5]} 57. Qd2 {[%clk 0:00:37.3]} 57... Ka1 {[%clk 0:01:38.6]}
58. a4 {[%clk 0:00:37.2]} 58... Kb1 {[%clk 0:01:37.3]} 59. a5 {[%clk 0:00:37.1]}
59... Ka1 {[%clk 0:01:36.4]} 60. a6 {[%clk 0:00:37]} 60... Kb1 {[%clk
0:01:35.7]} 61. a7 {[%clk 0:00:36.9]} 61... Ka1 {[%clk 0:01:34.7]} 62. a8=Q+
{[%clk 0:00:36]} 62... Kb1 {[%clk 0:01:34]} 63. Qaa2# {[%clk 0:00:35.9]} 1-0

[Event "Live Chess"]
[Site "Chess.com"]
[Date "2023.05.20"]
[Round "-"]
[White "jennybobby44"]
[Black "JoshMcK"]
[Result "1-0"]
[WhiteElo "1851"]
[BlackElo "1575"]
[TimeControl "300"]
[EndTime "13:51:52 PDT"]
[Termination "jennybobby44 won by resignation"]

1. Nf3 {[%clk 0:04:59.4]} 1... d5 {[%clk 0:04:57.3]} 2. d4 {[%clk 0:04:58.4]}
2... Nf6 {[%clk 0:04:55.1]} 3. c4 {[%clk 0:04:57.4]} 3... e6 {[%clk 0:04:53.8]}
4. Nc3 {[%clk 0:04:56.7]} 4... a6 {[%clk 0:04:41.3]} 5. Bf4 {[%clk 0:04:54.7]}
5... Bd6 {[%clk 0:04:27.6]} 6. Ne5 {[%clk 0:04:50.8]} 6... O-O {[%clk
0:04:20.8]} 7. h3 {[%clk 0:04:46]} 7... c5 {[%clk 0:04:19.2]} 8. e3 {[%clk
0:04:45.2]} 8... dxc4 {[%clk 0:04:16.9]} 9. Bxc4 {[%clk 0:04:44.3]} 9... cxd4
{[%clk 0:04:15.9]} 10. exd4 {[%clk 0:04:42.7]} 10... Qc7 {[%clk 0:03:59.6]} 11.
Bd3 {[%clk 0:04:33.5]} 11... Nc6 {[%clk 0:03:54.1]} 12. Nxc6 {[%clk 0:03:44.7]}
12... Bxf4 {[%clk 0:03:48.7]} 13. Nb4 {[%clk 0:03:43.7]} 13... Re8 {[%clk
0:03:39.2]} 14. O-O {[%clk 0:03:42.3]} 14... Qa5 {[%clk 0:03:16.7]} 15. Nc2
{[%clk 0:03:38]} 15... Qg5 {[%clk 0:03:11.3]} 16. Qf3 {[%clk 0:03:31.1]} 16...
e5 {[%clk 0:03:05.1]} 17. dxe5 {[%clk 0:03:29.7]} 17... Bxe5 {[%clk 0:02:59.8]}
18. Rae1 {[%clk 0:03:21.8]} 18... Bd7 {[%clk 0:02:43.5]} 19. Ne4 {[%clk
0:03:01.5]} 19... Nxe4 {[%clk 0:02:39.3]} 20. Bxe4 {[%clk 0:03:00.7]} 20... Bb5
{[%clk 0:02:19.1]} 21. Bxb7 {[%clk 0:02:55.1]} 21... Bxf1 {[%clk 0:02:08.7]} 22.
Bxa8 {[%clk 0:02:46.8]} 22... Rxa8 {[%clk 0:02:02]} 23. Qxa8+ {[%clk 0:02:43.6]}
1-0

[Event "Live Chess"]
[Site "Chess.com"]
[Date "2023.05.20"]
[Round "-"]
[White "luckywookie"]
[Black "ItsNot_Jasper"]
[Result "0-1"]
[WhiteElo "743"]
[BlackElo "1322"]
[TimeControl "300"]
[EndTime "13:51:56 PDT"]
[Termination "ItsNot_Jasper won by checkmate"]

1. e4 {[%clk 0:04:58]} 1... c6 {[%clk 0:04:58.8]} 2. c3 {[%clk 0:04:56]} 2... d5
{[%clk 0:04:58.4]} 3. f3 {[%clk 0:04:51.3]} 3... dxe4 {[%clk 0:04:57.2]} 4. fxe4
{[%clk 0:04:50]} 4... Nf6 {[%clk 0:04:55]} 5. d3 {[%clk 0:04:41.6]} 5... e5
{[%clk 0:04:52.7]} 6. Bg5 {[%clk 0:04:38.4]} 6... h6 {[%clk 0:04:50.9]} 7. Bxf6
{[%clk 0:04:34.5]} 7... Qxf6 {[%clk 0:04:50.8]} 8. Qf3 {[%clk 0:04:32.6]} 8...
Be7 {[%clk 0:04:48.4]} 9. Nd2 {[%clk 0:04:29.8]} 9... O-O {[%clk 0:04:46.3]} 10.
O-O-O {[%clk 0:04:28.2]} 10... Be6 {[%clk 0:04:44.6]} 11. Kb1 {[%clk 0:04:21]}
11... a5 {[%clk 0:04:43.1]} 12. Qxf6 {[%clk 0:04:18.5]} 12... Bxf6 {[%clk
0:04:42.1]} 13. Ndf3 {[%clk 0:04:17.6]} 13... a4 {[%clk 0:04:40.2]} 14. a3
{[%clk 0:04:07.5]} 14... b5 {[%clk 0:04:35.1]} 15. d4 {[%clk 0:04:02.5]} 15...
exd4 {[%clk 0:04:33.8]} 16. cxd4 {[%clk 0:03:57.8]} 16... b4 {[%clk 0:04:30.6]}
17. e5 {[%clk 0:03:56.7]} 17... Be7 {[%clk 0:04:28.4]} 18. Ne2 {[%clk
0:03:39.4]} 18... bxa3 {[%clk 0:04:27]} 19. bxa3 {[%clk 0:03:30.7]} 19... Bxa3
{[%clk 0:04:25.7]} 20. Rd3 {[%clk 0:03:19.6]} 20... Be7 {[%clk 0:04:12]} 21. Nc3
{[%clk 0:03:12.5]} 21... a3 {[%clk 0:04:06.9]} 22. Na2 {[%clk 0:03:04]} 22...
Nd7 {[%clk 0:04:02.3]} 23. Rc3 {[%clk 0:02:42.7]} 23... Rfb8+ {[%clk 0:03:59.7]}
24. Kc2 {[%clk 0:02:39.7]} 24... Rb2+ {[%clk 0:03:58]} 25. Kd3 {[%clk
0:02:37.4]} 25... Rxa2 {[%clk 0:03:47.2]} 26. Rxc6 {[%clk 0:02:35.1]} 26... Rb2
{[%clk 0:03:45.6]} 27. h4 {[%clk 0:02:25.4]} 27... a2 {[%clk 0:03:44.6]} 28. Be2
{[%clk 0:02:23.6]} 28... a1=Q {[%clk 0:03:43.2]} 29. Rxa1 {[%clk 0:02:22.3]}
29... Rxa1 {[%clk 0:03:43.1]} 30. Rc8+ {[%clk 0:02:19.1]} 30... Kh7 {[%clk
0:03:42.4]} 31. Ke3 {[%clk 0:02:12.4]} 31... Ra3+ {[%clk 0:03:40.7]} 32. Bd3+
{[%clk 0:02:10.9]} 32... g6 {[%clk 0:03:38]} 33. h5 {[%clk 0:02:06.5]} 33...
Rbb3 {[%clk 0:03:35.5]} 34. hxg6+ {[%clk 0:02:04.8]} 34... fxg6 {[%clk
0:03:35.4]} 35. Ne1 {[%clk 0:01:56.7]} 35... Bf5 {[%clk 0:03:33.9]} 36. Kd2
{[%clk 0:01:39.7]} 36... Bxd3 {[%clk 0:03:27.2]} 37. Nxd3 {[%clk 0:01:37.8]}
37... Rxd3+ {[%clk 0:03:26.4]} 38. Kc2 {[%clk 0:01:31.3]} 38... Rg3 {[%clk
0:03:15.7]} 39. Kb2 {[%clk 0:01:25.9]} 39... Rab3+ {[%clk 0:03:13.7]} 40. Kc2
{[%clk 0:01:22.3]} 40... Ra3 {[%clk 0:03:10.5]} 41. Kb2 {[%clk 0:01:21.4]} 41...
Rxg2+ {[%clk 0:03:09.5]} 42. Rc2 {[%clk 0:01:16.1]} 42... Rxc2+ {[%clk
0:03:06.3]} 43. Kxc2 {[%clk 0:01:15.1]} 43... Rf3 {[%clk 0:03:05.4]} 44. e6
{[%clk 0:01:09.4]} 44... Nf6 {[%clk 0:03:04.5]} 45. d5 {[%clk 0:01:07.7]} 45...
Nxd5 {[%clk 0:03:03.7]} 46. Kd2 {[%clk 0:01:05.6]} 46... Rf5 {[%clk 0:03:03.1]}
47. Kd3 {[%clk 0:01:03.3]} 47... h5 {[%clk 0:03:03]} 48. Kd4 {[%clk 0:01:02.2]}
48... h4 {[%clk 0:03:02.9]} 49. Kd3 {[%clk 0:00:56.1]} 49... h3 {[%clk
0:03:02.8]} 50. Ke2 {[%clk 0:00:55.3]} 50... h2 {[%clk 0:03:02.7]} 51. Kd1
{[%clk 0:00:54.1]} 51... h1=Q+ {[%clk 0:03:02.6]} 52. Kc2 {[%clk 0:00:53.5]}
52... Qh4 {[%clk 0:03:02.3]} 53. Kb3 {[%clk 0:00:53]} 53... Rf3+ {[%clk
0:03:01.8]} 54. Kc2 {[%clk 0:00:50.8]} 54... Qh2+ {[%clk 0:03:01.5]} 55. Kc1
{[%clk 0:00:47.8]} 55... Rf1# {[%clk 0:03:01.4]} 0-1

[Event "Live Chess"]
[Site "Chess.com"]
[Date "2023.05.20"]
[Round "-"]
[White "CheckThis4"]
[Black "Conradical12"]
[Result "1-0"]
[WhiteElo "2549"]
[BlackElo "1569"]
[TimeControl "300"]
[EndTime "13:52:02 PDT"]
[Termination "CheckThis4 won by resignation"]

1. d4 {[%clk 0:04:58.2]} 1... Nf6 {[%clk 0:04:55.5]} 2. Nc3 {[%clk 0:04:55.1]}
2... c5 {[%clk 0:04:53.3]} 3. d5 {[%clk 0:04:54.1]} 3... d6 {[%clk 0:04:51.7]}
4. e4 {[%clk 0:04:53.2]} 4... a6 {[%clk 0:04:49.6]} 5. f4 {[%clk 0:04:50.9]}
5... g6 {[%clk 0:04:48.5]} 6. e5 {[%clk 0:04:50]} 6... dxe5 {[%clk 0:04:46.8]}
7. fxe5 {[%clk 0:04:49.3]} 7... Ng4 {[%clk 0:04:46.1]} 8. e6 {[%clk 0:04:48.7]}
8... f6 {[%clk 0:04:44.6]} 9. Qxg4 {[%clk 0:04:47.6]} 9... Bg7 {[%clk
0:04:42.7]} 10. Bd3 {[%clk 0:04:46.7]} 10... O-O {[%clk 0:04:42.1]} 11. Nf3
{[%clk 0:04:38.2]} 11... f5 {[%clk 0:04:40.9]} 12. Qh4 {[%clk 0:04:37.3]} 12...
Qa5 {[%clk 0:04:39.2]} 13. O-O {[%clk 0:04:32.6]} 13... Re8 {[%clk 0:04:37.5]}
14. Bh6 {[%clk 0:04:30.1]} 14... Bh8 {[%clk 0:04:36.3]} 15. Bg5 {[%clk
0:04:21.8]} 15... b5 {[%clk 0:04:32.6]} 16. Bxe7 {[%clk 0:04:19.9]} 16... Qb6
{[%clk 0:04:27.6]} 17. Bxf5 {[%clk 0:04:11]} 17... c4+ {[%clk 0:04:24.5]} 18.
Kh1 {[%clk 0:04:08.5]} 18... gxf5 {[%clk 0:04:22.1]} 19. Qg5+ {[%clk 0:04:07.1]}
19... Bg7 {[%clk 0:04:20.5]} 20. Bf6 {[%clk 0:04:04.9]} 20... Qc7 {[%clk
0:04:19.9]} 21. Ne5 {[%clk 0:04:01.7]} 21... h6 {[%clk 0:04:15.1]} 22. Qg6
{[%clk 0:03:58.2]} 1-0